Workbook

Sheet (R3.10-)水道料金計算表
A1: ≪料金計算表≫
I2: 水道料金
B3: 【一般用】
O4: 水量料金内訳 | Q4: 使用水量 | U4: 単価 | V4: 金額
J5: 準備料金(A) | K5: =(VLOOKUP(D8,準備料金,2,0))*D10 -> 2240 | Q5: =IF($D$10=1,10,20) -> 20 | R5: m3まで | U5: 60 | V5: =IF(D12<Q6,D12*U5,Q5*U5) -> 1200
C6: （入力値） | J6: + | Q6: =IF($D$10=1,11,21) -> 21 | R6: ～ | S6: =IF($D$10=1,20,40) -> 40 | T6: m3 | U6: 110 | V6: =IF($D$12<Q7,IF($D$12<Q5,0,($D$12-Q5)*U6),(S6-Q5)*U6) -> 2200
J7: 水量料金(B) | K7: =SUM(V5:V11) -> 3400 | M7: ⇒ | Q7: =IF($D$10=1,21,41) -> 41 | R7: ～ | S7: =IF($D$10=1,30,60) -> 60 | T7: m3 | U7: 205 | V7: =IF($D$12<Q8,IF($D$12<Q7,0,($D$12-S6)*U7),(S7-S6)*U7) -> 0
B8: 口径 | D8: 20 | E8: mm | J8: + | Q8: =IF($D$10=1,31,61) -> 61 | R8: ～ | S8: =IF($D$10=1,100,200) -> 200 | T8: m3 | U8: 215 | V8: =IF($D$12<Q9,IF($D$12<Q8,0,($D$12-S7)*U8),(S8-S7)*U8) -> 0
J9: ="消費税 "&DBCS(TEXT(date!$G$17*100,0))&"％(C)" -> 消費税 １０％(C) | K9: =ROUNDDOWN(SUM(K5,K7)*date!G17,0) -> 564 | Q9: =IF($D$10=1,101,201) -> 201 | R9: ～ | S9: =IF($D$10=1,3000,6000) -> 6000 | T9: m3 | U9: 230 | V9: =IF($D$12<Q10,IF($D$12<Q9,0,($D$12-S8)*U9),(S9-S8)*U9) -> 0
B10: 使用月数 | D10: 2 | E10: ヵ月 | J10: ↓ | Q10: =IF($D$10=1,3001,6001) -> 6001 | R10: ～ | S10: =IF($D$10=1,10000,20000) -> 20000 | T10: m3 | U10: 240 | V10: =IF($D$12<Q11,IF($D$12<Q10,0,($D$12-S9)*U10),(S10-S9)*U10) -> 0
I11: 税込合計(A+B+C) | K11: =SUM(K5,K7,K9) -> 6204 | L11: D | Q11: =IF($D$10=1,10001,20001) -> 20001 | R11: m3以上 | U11: 190 | V11: =IF($D$12>S10,(D12-S10)*U11,0) -> 0
B12: 使用水量 | D12: 40 | E12: m3
I13: 下水道使用料
O14: 下水道使用料内訳 | Q14: 使用水量 | U14: 単価 | V14: 金額
B15: 下水道接続 | D15: あり | Q15: =IF($D$10=1,5,10) -> 10 | R15: m3まで | U15: =IF(D10=1,765,1530) -> 1530 | V15: =IF(D15="あり",U15,0) -> 1530
J16: 下水道使用料(E) | K16: =SUM(V15:V24) -> 4830 | M16: ⇒ | Q16: =IF($D$10=1,6,11) -> 11 | R16: ～ | S16: =IF($D$10=1,10,20) -> 20 | T16: m3 | U16: 85 | V16: =IF(D15="あり",IF($D$12<Q17,IF($D$12<Q15,0,($D$12-Q15)*U16),(S16-Q15)*U16),0) -> 850
J17: + | Q17: =IF($D$10=1,11,21) -> 21 | R17: ～ | S17: =IF($D$10=1,15,30) -> 30 | T17: m3 | U17: 115 | V17: =IF(D15="あり",IF($D$12<Q18,IF($D$12<Q17,0,($D$12-S16)*U17),(S17-S16)*U17),0) -> 1150
J18: ="消費税 "&DBCS(TEXT(date!$G$17*100,0))&"％(F)" -> 消費税 １０％(F) | K18: =ROUNDDOWN(K16*date!G17,0) -> 483 | Q18: =IF($D$10=1,16,31) -> 31 | R18: ～ | S18: =IF($D$10=1,30,60) -> 60 | T18: m3 | U18: 130 | V18: =IF(D15="あり",IF($D$12<Q19,IF($D$12<Q18,0,($D$12-S17)*U18),(S18-S17)*U18),0) -> 1300
J19: ↓ | Q19: =IF($D$10=1,31,61) -> 61 | R19: ～ | S19: =IF($D$10=1,100,200) -> 200 | T19: m3 | U19: 180 | V19: =IF(D15="あり",IF($D$12<Q20,IF($D$12<Q19,0,($D$12-S18)*U19),(S19-S18)*U19),0) -> 0
I20: 税込合計(E+F) | K20: =SUM(K16,K18) -> 5313 | L20: G | Q20: =IF($D$10=1,101,201) -> 201 | R20: ～ | S20: =IF($D$10=1,500,1000) -> 1000 | T20: m3 | U20: 190 | V20: =IF(D15="あり",IF($D$12<Q21,IF($D$12<Q20,0,($D$12-S19)*U20),(S20-S19)*U20),0) -> 0
Q21: =IF($D$10=1,501,1001) -> 1001 | R21: ～ | S21: =IF($D$10=1,1000,2000) -> 2000 | T21: m3 | U21: 205 | V21: =IF(D15="あり",IF($D$12<Q22,IF($D$12<Q21,0,($D$12-S20)*U21),(S21-S20)*U21),0) -> 0
Q22: =IF($D$10=1,1001,2001) -> 2001 | R22: ～ | S22: =IF($D$10=1,5000,10000) -> 10000 | T22: m3 | U22: 215 | V22: =IF(D15="あり",IF($D$12<Q23,IF($D$12<Q22,0,($D$12-S21)*U22),(S22-S21)*U22),0) -> 0
B23: 上下水道料金合計(D+G) | G23: =SUM(K11,K20) -> 11517 | Q23: =IF($D$10=1,5001,10001) -> 10001 | R23: ～ | S23: =IF($D$10=1,10000,20000) -> 20000 | T23: m3 | U23: 235 | V23: =IF(D15="あり",IF($D$12<Q24,IF($D$12<Q23,0,($D$12-S22)*U23),(S23-S22)*U23),0) -> 0
Q24: =IF($D$10=1,10001,20001) -> 20001 | R24: m3以上 | U24: 240 | V24: =IF($D$12>S23,(D12-S23)*U24,0) -> 0
I29: 水道料金
B30: 【集合家事用】
O31: 水量料金内訳 | Q31: 使用水量 | U31: 単価 | V31: 金額
B32: ※ ワンルームは７戸以上からが集合家事対象。 | J32: 準備料金(A) | K32: =IF(D36=13,910,IF(D36="","",1020))*E40*D42 -> 2040 | Q32: =IF(D42=1,10*E40,20*E40) -> 20 | R32: m3まで | U32: 60 | V32: =IF($D$44<Q33,(D44*U32),Q32*U32) -> 1200
J33: + | Q33: =IF($D$42=1,(10*$E$40)+1,(20*$E$40)+1) -> 21 | R33: ～ | S33: =IF(D42=1,20*E40,40*E40) -> 40 | T33: m3 | U33: 110 | V33: =IF($D$44<Q34,IF($D$44<Q33,0,(D44-Q32)*U33),(S33-Q32)*U33) -> 0
C34: （入力値） | J34: 水量料金(B) | K34: =SUM(V32:V38) -> 1200 | M34: ⇒ | Q34: =IF($D$42=1,(20*$E$40)+1,(40*$E$40)+1) -> 41 | R34: ～ | S34: =IF(D42=1,30*E40,60*E40) -> 60 | T34: m3 | U34: 205 | V34: =IF($D$44<Q35,IF($D$44<Q34,0,($D$44-S33)*U34),(S34-S33)*U34) -> 0
J35: + | Q35: =IF($D$42=1,(30*$E$40)+1,(60*$E$40)+1) -> 61 | R35: ～ | S35: =IF(D42=1,100*E40,200*E40) -> 200 | T35: m3 | U35: 215 | V35: =IF($D$44<Q36,IF($D$44<Q35,0,($D$44-S34)*U35),(S35-S34)*U35) -> 0
B36: 子メータ口径 | D36: 20 | E36: mm | J36: ="消費税 "&DBCS(TEXT(date!$G$17*100,0))&"％(C)" -> 消費税 １０％(C) | K36: =ROUNDDOWN(SUM(K32,K34)*date!G17,0) -> 324 | Q36: =IF($D$42=1,(100*$E$40)+1,(200*$E$40)+1) -> 201 | R36: ～ | S36: =IF(D42=1,3000*E40,6000*E40) -> 6000 | T36: m3 | U36: 230 | V36: =IF($D$44<Q37,IF($D$44<Q36,0,($D$44-S35)*U36),(S36-S35)*U36) -> 0
J37: ↓ | Q37: =IF($D$42=1,(3000*$E$40)+1,(6000*$E$40)+1) -> 6001 | R37: ～ | S37: =IF(D42=1,10000*E40,20000*E40) -> 20000 | T37: m3 | U37: 240 | V37: =IF($D$44<Q38,IF($D$44<Q37,0,($D$44-S36)*U37),(S37-S36)*U37) -> 0
B38: 住戸形態 | D38: ファミリー | I38: 税込合計(A+B+C) | K38: =SUM(K32,K34,K36) -> 3564 | L38: D | Q38: =IF(D42=1,(10000*E40)+1,(20000*E40)+1) -> 20001 | R38: m3以上 | U38: 190 | V38: =IF($D$44>S37,(D44-S37)*U38,0) -> 0
B40: 装置数 | D40: 1 | E40: =IF(D38="ワンルーム",ROUNDDOWN(D40/3.3,0),D40) -> 1 | F40: 戸 | I40: 下水道使用料
O41: 下水道使用料内訳 | Q41: 使用水量 | U41: 単価 | V41: 金額
B42: 使用月数 | D42: 2 | E42: ヵ月 | Q42: =IF(D42=1,5*E40,10*E40) -> 10 | R42: m3まで | U42: =IF($D$42=1,645,1290)*E40 -> 1290 | V42: =IF(D46="あり",U42,0) -> 1290
I43: 下水道使用料(E) | K43: =SUM(V42:V51) -> 2140 | M43: ⇒ | Q43: =IF($D$42=1,(5*$E$40)+1,(10*$E$40)+1) -> 11 | R43: ～ | S43: =IF($D$42=1,(10*$E$40),(20*$E$40)) -> 20 | T43: m3 | U43: 85 | V43: =IF(D46="あり",IF($D$44<Q44,IF($D$44<Q42,0,(D44-Q42)*U43),(S43-Q42)*U43),0) -> 850
B44: 親メータ使用水量 | D44: 20 | E44: m3 | J44: + | Q44: =IF($D$42=1,(10*$E$40)+1,(20*$E$40)+1) -> 21 | R44: ～ | S44: =IF($D$42=1,15*$E$40,30*$E$40) -> 30 | T44: m3 | U44: 115 | V44: =IF(D46="あり",IF($D$44<Q45,IF($D$44<Q44,0,($D$44-S43)*U44),(S44-S43)*U44),0) -> 0
J45: ="消費税 "&DBCS(TEXT(date!$G$17*100,0))&"％(F)" -> 消費税 １０％(F) | K45: =ROUNDDOWN(K43*date!G17,0) -> 214 | Q45: =IF($D$42=1,(15*$E$40)+1,(30*$E$40)+1) -> 31 | R45: ～ | S45: =IF($D$42=1,30*$E$40,60*$E$40) -> 60 | T45: m3 | U45: 130 | V45: =IF(D46="あり",IF($D$44<Q46,IF($D$44<Q45,0,($D$44-S44)*U45),(S45-S44)*U45),0) -> 0
B46: 下水道接続 | D46: あり | J46: ↓ | Q46: =IF($D$42=1,(30*$E$40)+1,(60*$E$40)+1) -> 61 | R46: ～ | S46: =IF($D$42=1,100*$E$40,200*$E$40) -> 200 | T46: m3 | U46: 180 | V46: =IF(D46="あり",IF($D$44<Q47,IF($D$44<Q46,0,($D$44-S45)*U46),(S46-S45)*U46),0) -> 0
I47: 税込合計(E+F) | K47: =SUM(K43,K45) -> 2354 | L47: G | Q47: =IF($D$42=1,(100*$E$40)+1,(200*$E$40)+1) -> 201 | R47: ～ | S47: =IF($D$42=1,500*$E$40,1000*$E$40) -> 1000 | T47: m3 | U47: 190 | V47: =IF(D46="あり",IF($D$44<Q48,IF($D$44<Q47,0,($D$44-S46)*U47),(S47-S46)*U47),0) -> 0
Q48: =IF($D$42=1,(500*$E$40)+1,(1000*$E$40)+1) -> 1001 | R48: ～ | S48: =IF($D$42=1,1000*$E$40,2000*$E$40) -> 2000 | T48: m3 | U48: 205 | V48: =IF(D46="あり",IF($D$44<Q49,IF($D$44<Q48,0,($D$44-S47)*U48),(S48-S47)*U48),0) -> 0
Q49: =IF($D$42=1,(1000*$E$40)+1,(2000*$E$40)+1) -> 2001 | R49: ～ | S49: =IF($D$42=1,5000*$E$40,10000*$E$40) -> 10000 | T49: m3 | U49: 215 | V49: =IF(D46="あり",IF($D$44<Q50,IF($D$44<Q49,0,($D$44-S48)*U49),(S49-S48)*U49),0) -> 0
B50: 上下水道料金合計(D+G) | G50: =SUM(K38,K47) -> 5918 | Q50: =IF($D$42=1,(5000*$E$40)+1,(10000*$E$40)+1) -> 10001 | R50: ～ | S50: =IF($D$42=1,10000*$E$40,20000*$E$40) -> 20000 | T50: m3 | U50: 235 | V50: =IF(D46="あり",IF($D$44<Q51,IF($D$44<Q50,0,($D$44-S49)*U50),(S50-S49)*U50),0) -> 0
Q51: =IF($D$42=1,(10000*$E$40)+1,(20000*$E$40)+1) -> 20001 | R51: m3以上 | U51: 240 | V51: =IF($D$44>S50,(D44-S50)*U51,0) -> 0
I56: 水道料金
B57: 【公衆浴場用】
J59: 準備料金(A) | K59: =(VLOOKUP(D63,準備料金2,2,0))*D65 -> 13800
J60: + | O60: 水量料金内訳 | Q60: 使用水量 | U60: 単価 | V60: 金額
C61: （入力値） | J61: 水量料金(B) | K61: =$V$61 -> 0 | M61: ⇒ | Q61: 1 | R61: m3につき | U61: 80 | V61: =D67*U61 -> 0
J62: +
B63: 口径 | D63: 40以下 | E63: mm | J63: ="消費税 "&DBCS(TEXT(date!$G$17*100,0))&"％(C)" -> 消費税 １０％(C) | K63: =ROUNDDOWN(SUM(K59,K61)*date!G17,0) -> 1380
J64: ↓
B65: 使用月数 | D65: 2 | E65: ヵ月 | I65: 税込合計(A+B+C) | K65: =SUM(K59,K61,K63) -> 15180 | L65: D
B67: 使用水量 | D67: 0 | E67: m3 | I67: 下水道使用料
O68: 下水道使用料内訳 | Q68: 使用水量 | U68: 単価 | V68: 金額
B69: 下水道接続 | D69: あり | Q69: =IF($D$65=1,300,600) -> 600 | R69: m3まで | U69: =IF($D$65=1,10500,21000) -> 21000 | V69: =IF(D69="あり",IF($D$67<Q69,U69,U69),0) -> 21000
I70: 下水道使用料(E) | K70: =IF(D69="なし",0,SUM(V69:V70)) -> 21000 | M70: ⇒ | Q70: =IF($D$65=1,300+1,600+1) -> 601 | R70: m3以上 | U70: 40 | V70: =IF(D69="あり",IF($D$67>Q69,($D$67-Q69)*U70,0),0) -> 0
J71: +
J72: ="消費税 "&DBCS(TEXT(date!$G$17*100,0))&"％(F)" -> 消費税 １０％(F) | K72: =ROUNDDOWN(K70*date!G17,0) -> 2100
J73: ↓
I74: 税込合計(E+F) | K74: =SUM(K70,K72) -> 23100 | L74: G
B77: 上下水道料金合計(D+G) | G77: =SUM(K65,K74) -> 38280
I83: 水道料金
B84: 【特殊用】
J86: 準備料金(A) | K86: =(VLOOKUP(D89,準備料金,2,0))*D91 -> 1120
C87: （入力値） | J87: + | O87: 水量料金内訳 | Q87: 使用水量 | U87: 単価 | V87: 金額
J88: 水量料金(B) | K88: =SUM(V88:V89) -> 0 | M88: ⇒ | Q88: =D91*10 -> 10 | R88: m3まで | U88: 290 | V88: =IF(D93<Q89,D93*U88,Q88*U88) -> 0
B89: 口径 | D89: 20 | E89: mm | J89: + | Q89: =(D91*10)+1 -> 11 | R89: m3以上 | U89: 440 | V89: =IF(D93>Q88,(D93-Q88)*U89,0) -> 0
J90: ="消費税 "&DBCS(TEXT(date!$G$17*100,0))&"％(C)" -> 消費税 １０％(C) | K90: =ROUNDDOWN(SUM(K86,K88)*date!G17,0) -> 112
B91: 使用月数 | D91: 1 | E91: ヵ月 | J91: ↓
I92: 税込合計(A+B+C) | K92: =SUM(K86,K88,K90) -> 1232 | L92: D
B93: 使用水量 | D93: 0 | E93: m3
B95: 下水道接続 | D95: あり | I95: 下水道使用料
O96: 下水道使用料内訳 | Q96: 使用水量 | U96: 単価 | V96: 金額
Q97: =D91*5 -> 5 | R97: m3まで | U97: =D91*765 -> 765 | V97: =IF(D95="あり",IF($D$93<Q98,U97,U97),0) -> 765
J98: 下水道使用料(E) | K98: =SUM(V97:V106) -> 765 | M98: ⇒ | Q98: =($D$91*5)+1 -> 6 | R98: ～ | S98: =$D$91*10 -> 10 | T98: m3 | U98: 85 | V98: =IF(D95="あり",IF($D$93<Q99,IF($D$93<Q97,0,($D$93-Q97)*U98),(S98-Q97)*U98),0) -> 0
J99: + | Q99: =($D$91*10)+1 -> 11 | R99: ～ | S99: =$D$91*15 -> 15 | T99: m3 | U99: 115 | V99: =IF(D95="あり",IF($D$93<Q100,IF($D$93<Q99,0,($D$93-S98)*U99),(S99-S98)*U99),0) -> 0
J100: ="消費税 "&DBCS(TEXT(date!$G$17*100,0))&"％(F)" -> 消費税 １０％(F) | K100: =ROUNDDOWN(K98*date!G17,0) -> 76 | Q100: =($D$91*15)+1 -> 16 | R100: ～ | S100: =$D$91*30 -> 30 | T100: m3 | U100: 130 | V100: =IF(D95="あり",IF($D$93<Q101,IF($D$93<Q100,0,($D$93-S99)*U100),(S100-S99)*U100),0) -> 0
J101: ↓ | Q101: =($D$91*30)+1 -> 31 | R101: ～ | S101: =$D$91*100 -> 100 | T101: m3 | U101: 180 | V101: =IF(D95="あり",IF($D$93<Q102,IF($D$93<Q101,0,($D$93-S100)*U101),(S101-S100)*U101),0) -> 0
I102: 税込合計(E+F) | K102: =SUM(K98,K100) -> 841 | L102: G | Q102: =($D$91*100)+1 -> 101 | R102: ～ | S102: =$D$91*500 -> 500 | T102: m3 | U102: 190 | V102: =IF(D95="あり",IF($D$93<Q103,IF($D$93<Q102,0,($D$93-S101)*U102),(S102-S101)*U102),0) -> 0
Q103: =($D$91*500)+1 -> 501 | R103: ～ | S103: =$D$91*1000 -> 1000 | T103: m3 | U103: 205 | V103: =IF(D95="あり",IF($D$93<Q104,IF($D$93<Q103,0,($D$93-S102)*U103),(S103-S102)*U103),0) -> 0
B104: 上下水道料金合計(D+G) | G104: =K92+K102 -> 2073 | Q104: =($D$91*1000)+1 -> 1001 | R104: ～ | S104: =$D$91*5000 -> 5000 | T104: m3 | U104: 215 | V104: =IF(D95="あり",IF($D$93<Q105,IF($D$93<Q104,0,($D$93-S103)*U104),(S104-S103)*U104),0) -> 0
Q105: =($D$91*5000)+1 -> 5001 | R105: ～ | S105: =$D$91*10000 -> 10000 | T105: m3 | U105: 235 | V105: =IF(D95="あり",IF($D$93<Q106,IF($D$93<Q105,0,($D$93-S104)*U105),(S105-S104)*U105),0) -> 0
Q106: =($D$91*10000)+1 -> 10001 | R106: m3以上 | U106: 240 | V106: =IF($D$93>S105,(D93-S105)*U106,0) -> 0

Sheet date (hidden)
B2: 口径1 | D2: 新設分分岐プール額 | G2: 口径変更（砂利道） | J2: 加入金
B3: なし | D3: 口径 | E3: 砂利道 | G3: あり | H3: -62700 | J3: 甲 | L3: 乙
B4: 13 | D4: 13 | E4: 189200 | G4: なし | H4: 0 | J4: なし | K4: 0 | L4: なし | M4: 0
B5: 20 | D5: 20 | E5: 189200 | J5: 13 | K5: 66000 | L5: 13 | M5: 176000
B6: 25 | D6: 25 | E6: 239800 | J6: 20 | K6: 115500 | L6: 20 | M6: 308000
B7: 30 | D7: 40 | E7: 578600 | G7: 口径変更（舗装道） | J7: 25 | K7: 198000 | L7: 25 | M7: 528000
B8: 40 | D8: 50 | E8: 798600 | G8: あり | H8: -105600 | J8: 40 | K8: 825000 | L8: 40 | M8: 2200000
B9: 50 | D9: 75 | E9: 1647800 | G9: なし | H9: 0 | J9: 50 | K9: 2475000 | L9: 50 | M9: 6600000
B10: 75 | D10: 100 | E10: 2016300 | J10: 75 | K10: 4950000 | L10: 75 | M10: 13200000
B11: 100 | D11: 150 | E11: 3426500 | G11: 口径3 | J11: 100 | K11: 9900000 | L11: 100 | M11: 26400000
B12: 150 | D12: 200 | E12: 5824500 | G12: 40以下 | J12: 150 | K12: 19800000 | L12: 150 | M12: 52800000
G13: 50以上 | J13: 200 | K13: 39600000 | L13: 200 | M13: 105600000
D14: 新設分分岐プール額
B15: 口径2 | D15: 口径 | E15: 舗装道
B16: 13 | D16: 13 | E16: 316800 | G16: 消費税 | J16: 準備料金1
B17: 20 | D17: 20 | E17: 316800 | G17: 0.1 | J17: 口径 | K17: 単価
B18: 25 | D18: 25 | E18: 377300 | J18: 13 | K18: 1010
B19: 40 | D19: 40 | E19: 1007600 | J19: 20 | K19: 1120
B20: 50 | D20: 50 | E20: 1170400 | G20: 先行分岐 | J20: 25 | K20: 2400
B21: 75 | D21: 75 | E21: 2294600 | G21: 5500 | J21: 30 | K21: 4300
B22: 100 | D22: 100 | E22: 2702700 | J22: 40 | K22: 11000
B23: 150 | D23: 150 | E23: 4593600 | J23: 50 | K23: 50000
B24: 200 | D24: 200 | E24: 7807800 | J24: 75 | K24: 115000
J25: 100 | K25: 250000
J26: 150 | K26: 500000
B28: 道路形態 | D28: 舗装道 | F28: 砂利道
B29: 砂利道 | D29: あり | F29: なし
B30: 舗装道 | D30: 自己都合 | J30: 準備料金2
D31: なし | J31: 口径 | K31: 単価
J32: 40以下 | K32: 6900
B33: 撤去口径 | D33: 本復旧軽減（舗装道のみ） | G33: 自己都合での軽減 | J33: 50以上 | K33: 30000
B34: なし | D34: 分岐口径 | E34: 単価（昼間） | F34: 単価（夜間） | G34: 単価（昼間） | H34: 単価（夜間）
B35: 13 | D35: 13～25 | E35: -74800 | F35: -100980 | G35: =E35/2 -> -37400 | H35: =F35/2 -> -50490
B36: 20 | D36: 40～75 | E36: -198000 | F36: -267300 | G36: =E36/2 -> -99000 | H36: =F36/2 -> -133650
B37: 25 | D37: 100以上 | E37: -240900 | F37: -325215 | G37: -120450 | H37: =F37/2 -> -162607.5
B38: 40
B39: 50
B40: 75 | D40: 検査手数料
B41: 100 | D41: 新設・建て替え | E41: 9600
B42: 150 | D42: 増設・先行分岐 | E42: 2600
B43: 200
D45: 撤去分分岐プール額（全口径同一）
D46: 昼/夜別 | E46: 砂利道 | F46: 舗装道
D47: 昼間 | E47: 44000 | F47: 77000
D48: 夜間 | E48: 59400 | F48: 103950
